[Event "4NCL Div 2 2024-25"]
[Site "England"]
[Date "2025.04.06"]
[Round "8.26"]
[White "Bullen, Alex"]
[Black "Ashton, Adam G"]
[Result "1/2-1/2"]
[Annotator "ChessBase"]
[ECO "D32"]
[WhiteElo "2160"]
[BlackElo "2285"]
[PlyCount "66"]
[EventDate "2024.11.23"]
[EventType "team-tourn"]
[EventCountry "ENG"]
[SourceTitle "playchess.com"]
[Source "ChessBase"]
[SourceQuality "1"]
[TimeControl "40/6000+30:3000+30"]

1. Nf3 {[%emt 0:10:05]} d5 {[%emt 0:18:06]} 2. e3 {[%emt 0:00:09]} Nf6 {[%emt 0:01:28]} 3. c4 {[%emt 0:00:14]} e6 {[%emt 0:01:06]} 4. Nc3 {[%emt 0:00:15]} c5 {[%emt 0:02:49]} 5. cxd5 {[%emt 0:00:13]} exd5 {[%emt 0:00:11]} 6. d4 {[%emt 0:00:20]} a6 {[%emt 0:08:17]} 7. Be2 {[%emt 0:06:52]} Nc6 {[%emt 0:01:05]} 8. O-O {[%emt 0:01:04]} cxd4 {[%emt 0:05:19]} 9. Nxd4 {[%emt 0:00:15]} Bd6 {[%emt 0:03:30]} 10. b3 {[%emt 0:03:32]} O-O {[%emt 0:00:15]} 11. Bb2 {[%emt 0:00:47]} Re8 {[%emt 0:01:57]} 12. Nxc6 {[%emt 0:03:14]} bxc6 {[%emt 0:00:05]} 13. Rc1 {[%emt 0:00:48]} Qe7 {[%emt 0:14:24]} 14. Na4 {[%emt 0:05:22]} Bb7 {[%emt 0:08:35]} 15. Bf3 {[%emt 0:06:48]} Rac8 {[%emt 0:02:51]} 16. Qd3 {[%emt 0:04:53]} Nd7 {[%emt 0:06:22]} 17. Qf5 {[%emt 0:09:01]} Ne5 {[%emt 0:04:54]} 18. Bxe5 {[%emt 0:09:43]} Bxe5 {[%emt 0:00:34]} 19. Nc5 {[%emt 0:00:33]} Bd6 {[%emt 0:00:55]} 20. Qc2 {[%emt 0:00:30]} Ba8 {[%emt 0:03:03]} 21. Rfd1 {[%emt 0:02:17]} a5 {[%emt 0:02:27]} 22. g3 {[%emt 0:02:25]} Rb8 {[%emt 0:00:19]} 23. Be2 {[%emt 0:04:32]} g6 {[%emt 0:02:57]} 24. Qc3 {[%emt 0:03:50]} Qa7 {[%emt 0:01:10]} 25. Rc2 {[%emt 0:01:46]} h5 {[%emt 0:01:27]} 26. Rdc1 {[%emt 0:04:01]} Be5 {[%emt 0:02:52]} 27. Qd3 {[%emt 0:01:09]} Rbd8 {[%emt 0:06:09]} 28. Qa6 {[%emt 0:02:28]} Qc7 {[%emt 0:01:16]} 29. Bf3 {[%emt 0:02:26]} h4 {[%emt 0:00:19]} 30. Qf1 {[%emt 0:03:39]} Qe7 {[%emt 0:01:38]} 31. Qa6 {[%emt 0:02:29]} Qc7 {[%emt 0:00:39]} 32. Qf1 {[%emt 0:00:10]} Qe7 {[%emt 0:00:15]} 33. Qa6 {[%emt 0:02:11]} Qc7 {[%emt 0:00:12]} 1/2-1/2

[Event "4NCL Div 2 2024-25"]
[Site "England"]
[Date "2025.04.06"]
[Round "8.27"]
[White "Kanyamarala, Trisha"]
[Black "Jones, Steven A"]
[Result "1-0"]
[Annotator "ChessBase"]
[ECO "D96"]
[WhiteElo "2185"]
[BlackElo "2175"]
[PlyCount "91"]
[EventDate "2024.11.23"]
[EventType "team-tourn"]
[EventCountry "ENG"]
[SourceTitle "playchess.com"]
[Source "ChessBase"]
[SourceQuality "1"]
[TimeControl "40/6000+30:3000+30"]

1. d4 {[%emt 0:10:06]} Nf6 {[%emt 0:11:44]} 2. c4 {[%emt 0:00:09]} g6 {[%emt 0:00:27]} 3. Nc3 {[%emt 0:00:25]} d5 {[%emt 0:00:26]} 4. Nf3 {[%emt 0:01:10]} Bg7 {[%emt 0:00:27]} 5. Qb3 {[%emt 0:01:09]} dxc4 {[%emt 0:01:20]} 6. Qxc4 {[%emt 0:00:30]} Be6 {[%emt 0:03:21]} 7. Qb5+ {[%emt 0:03:32]} Bd7 {[%emt 0:07:52]} 8. Qb3 {[%emt 0:11:43]} O-O {[%emt 0:08:29]} 9. e4 {[%emt 0:05:50]} c5 {[%emt 0:01:35]} 10. d5 {[%emt 0:07:19]} b5 {[%emt 0:02:16]} 11. e5 {[%emt 0:09:35]} Ng4 {[%emt 0:08:28]} 12. Bf4 {[%emt 0:12:38]} c4 {[%emt 0:06:57]} 13. Qc2 {[%emt 0:11:45]} Bf5 {[%emt 0:03:26]} 14. Qd2 {[%emt 0:01:08]} b4 {[%emt 0:01:59]} 15. Nd1 {[%emt 0:05:18]} Qc7 {[%emt 0:05:28]} 16. Rc1 {[%emt 0:09:24]} Nxe5 {[%emt 0:02:24]} 17. Bxe5 {[%emt 0:04:11]} Bxe5 {[%emt 0:00:08]} 18. Rxc4 {[%emt 0:01:04]} Qd6 {[%emt 0:00:45]} 19. Nxe5 {[%emt 0:03:20]} Qxe5+ {[%emt 0:00:05]} 20. Be2 {[%emt 0:00:23]} Rd8 {[%emt 0:12:14]} 21. Ne3 {[%emt 0:00:22]} a5 {[%emt 0:00:55]} 22. O-O {[%emt 0:01:09]} Nd7 {[%emt 0:01:13]} 23. f4 {[%emt 0:06:11]} Qf6 {[%emt 0:06:52]} 24. Rc6 {[%emt 0:00:19]} Qh4 {[%emt 0:00:13]} 25. Nxf5 {[%emt 0:02:29]} gxf5 {[%emt 0:00:08]} 26. Rf3 {[%emt 0:00:30]} Nf6 {[%emt 0:01:43]} 27. Rh3 {[%emt 0:01:00]} Ne4 {[%emt 0:00:34]} 28. Rxh4 {[%emt 0:01:16]} Nxd2 {[%emt 0:00:09]} 29. Rch6 {[%emt 0:00:22]} Rxd5 {[%emt 0:02:43]} 30. Rxh7 {[%emt 0:00:15]} Rad8 {[%emt 0:00:15]} 31. Rh8+ {[%emt 0:00:26]} Kg7 {[%emt 0:00:05]} 32. R4h7+ {[%emt 0:00:08]} Kf6 {[%emt 0:00:29]} 33. Rh6+ {[%emt 0:00:23]} Kg7 {[%emt 0:00:10]} 34. R8h7+ {[%emt 0:00:18]} Kg8 {[%emt 0:02:29]} 35. Rh8+ {[%emt 0:00:24]} Kg7 {[%emt 0:00:06]} 36. R8h7+ {[%emt 0:00:07]} Kf8 {[%emt 0:01:51]} 37. Bh5 {[%emt 0:00:20]} Ne4 {[%emt 0:00:38]} 38. Rh8+ {[%emt 0:00:50]} Kg7 {[%emt 0:00:05]} 39. R8h7+ {[%emt 0:00:34]} Kf8 {[%emt 0:00:31]} 40. Rxf7+ {[%emt 0:01:17]} Kg8 {[%emt 0:01:20]} 41. h4 {[%emt 0:27:16]} Rd1+ {[%emt 0:26:47]} 42. Kh2 {[%emt 0:00:08]} Nf2 {[%emt 0:00:16]} 43. Rxf5 {[%emt 0:05:54]} Rh1+ {[%emt 0:00:34]} 44. Kg3 {[%emt 0:00:05]} Ne4+ {[%emt 0:00:23]} 45. Kf3 {[%emt 0:00:48]} Re1 {[%emt 0:02:15]} 46. Bf7+ {[%emt 0:20:00]} 1-0

[Event "4NCL Div 2 2024-25"]
[Site "England"]
[Date "2025.04.06"]
[Round "8.28"]
[White "Saunders, Aron"]
[Black "Navaratnam, Rohan Shan Tze"]
[Result "0-1"]
[Annotator "ChessBase"]
[ECO "B22"]
[WhiteElo "2106"]
[BlackElo "2306"]
[PlyCount "74"]
[EventDate "2024.11.23"]
[EventType "team-tourn"]
[EventCountry "ENG"]
[SourceTitle "playchess.com"]
[Source "ChessBase"]
[SourceQuality "1"]
[TimeControl "40/6000+30:3000+30"]

1. e4 {[%emt 0:10:03]} c5 {[%emt 0:10:05]} 2. Nf3 {[%emt 0:00:03]} e6 {[%emt 0:00:05]} 3. c3 {[%emt 0:00:04]} Nf6 {[%emt 0:00:09]} 4. e5 {[%emt 0:00:08]} Nd5 {[%emt 0:00:03]} 5. d4 {[%emt 0:00:05]} cxd4 {[%emt 0:00:04]} 6. cxd4 {[%emt 0:00:04]} b6 {[%emt 0:00:05]} 7. Bc4 {[%emt 0:01:25]} Ba6 {[%emt 0:00:09]} 8. Bxa6 {[%emt 0:03:17]} Nxa6 {[%emt 0:00:16]} 9. O-O {[%emt 0:02:32]} Be7 {[%emt 0:00:49]} 10. Nbd2 {[%emt 1:27:49]} O-O {[%emt 0:00:51]} 11. Qe2 {[%emt 0:00:00]} Nab4 {[%emt 0:13:04]} 12. Ne4 {[%emt 0:00:00]} f6 {[%emt 0:09:47]} 13. a3 {[%emt 0:00:00]} Nc6 {[%emt 0:00:32]} 14. Bd2 {[%emt 0:00:00]} fxe5 {[%emt 0:11:29]} 15. dxe5 {[%emt 0:00:00]} Qe8 {[%emt 0:02:33]} 16. Rad1 {[%emt 0:00:00]} Bd8 {[%emt 0:01:46]} 17. Nc3 {[%emt 0:00:00]} Nce7 {[%emt 0:04:00]} 18. Qe4 {[%emt 0:00:00]} Bc7 {[%emt 0:03:58]} 19. Nxd5 {[%emt 0:00:00]} Nxd5 {[%emt 0:00:23]} 20. Bc1 {[%emt 0:00:00]} Rc8 {[%emt 0:02:25]} 21. Ng5 {[%emt 0:00:00]} Qg6 {[%emt 0:06:50]} 22. Qxg6 {[%emt 0:00:00]} hxg6 {[%emt 0:00:02]} 23. f4 {[%emt 0:00:00]} b5 {[%emt 0:00:36]} 24. Ne4 {[%emt 0:00:00]} Bb6+ {[%emt 0:05:57]} 25. Kh1 {[%emt 0:00:00]} Rc2 {[%emt 0:02:30]} 26. g3 {[%emt 0:00:00]} Rfc8 {[%emt 0:06:24]} 27. Nd6 {[%emt 0:00:00]} R8c5 {[%emt 0:02:00]} 28. Rfe1 {[%emt 0:00:00]} a5 {[%emt 0:03:47]} 29. b4 {[%emt 0:00:00]} Rc6 {[%emt 0:07:08]} 30. Nxb5 {[%emt 0:00:00]} axb4 {[%emt 0:03:50]} 31. axb4 {[%emt 0:00:00]} Ra2 {[%emt 0:00:18]} 32. Bd2 {[%emt 0:00:00]} Rcc2 {[%emt 0:02:04]} 33. Re2 {[%emt 0:00:00]} Nxb4 {[%emt 0:02:07]} 34. Nc3 {[%emt 0:00:00]} Ra3 {[%emt 0:01:37]} 35. Re4 {[%emt 0:02:47]} Nd3 {[%emt 0:02:33]} 36. Nb1 {[%emt 0:04:08]} Nf2+ {[%emt 0:01:24]} 37. Kg2 {[%emt 0:00:04]} Nxd1 {[%emt 0:01:44]} 0-1

[Event "4NCL Div 2 2024-25"]
[Site "England"]
[Date "2025.04.06"]
[Round "8.29"]
[White "Jackson, Edward"]
[Black "Blackburn, Jonathan L B"]
[Result "1-0"]
[Annotator "ChessBase"]
[ECO "C09"]
[WhiteElo "2132"]
[BlackElo "2197"]
[PlyCount "109"]
[EventDate "2024.11.23"]
[EventType "team-tourn"]
[EventCountry "ENG"]
[SourceTitle "playchess.com"]
[Source "ChessBase"]
[SourceQuality "1"]
[TimeControl "40/6000+30:3000+30"]

1. e4 {[%emt 0:10:36]} e6 {[%emt 0:10:03]} 2. d4 {[%emt 0:00:51]} d5 {[%emt 0:00:02]} 3. Nd2 {[%emt 0:00:07]} c5 {[%emt 0:01:02]} 4. exd5 {[%emt 0:01:17]} exd5 {[%emt 0:00:04]} 5. Ngf3 {[%emt 0:00:14]} Nc6 {[%emt 0:00:06]} 6. Bb5 {[%emt 0:00:29]} Qe7+ {[%emt 0:00:21]} 7. Qe2 {[%emt 0:01:42]} Qxe2+ {[%emt 0:00:35]} 8. Kxe2 {[%emt 0:01:43]} a6 {[%emt 0:00:04]} 9. Bxc6+ {[%emt 0:00:54]} bxc6 {[%emt 0:00:20]} 10. Re1 {[%emt 0:05:26]} f6 {[%emt 0:00:06]} 11. dxc5 {[%emt 0:04:17]} Bxc5 {[%emt 0:00:29]} 12. Nb3 {[%emt 0:00:20]} Be7 {[%emt 0:02:36]} 13. Be3 {[%emt 0:00:50]} Rb8 {[%emt 0:02:25]} 14. Kd2 {[%emt 0:04:13]} Kf7 {[%emt 0:01:42]} 15. Ba7 {[%emt 0:05:19]} Rb7 {[%emt 0:04:20]} 16. Bc5 {[%emt 0:03:17]} Rxb3 {[%emt 0:03:49]} 17. Rxe7+ {[%emt 0:00:39]} Nxe7 {[%emt 0:00:20]} 18. axb3 {[%emt 0:00:11]} Nf5 {[%emt 0:15:20]} 19. Ra4 {[%emt 0:04:27]} h5 {[%emt 0:02:01]} 20. Rb4 {[%emt 0:03:42]} Ke6 {[%emt 0:01:33]} 21. Ne1 {[%emt 0:06:42]} g5 {[%emt 0:17:14]} 22. Nd3 {[%emt 0:02:02]} Nd6 {[%emt 0:15:48]} 23. f3 {[%emt 0:07:37]} g4 {[%emt 0:06:47]} 24. Rb6 {[%emt 0:02:13]} Kd7 {[%emt 0:01:16]} 25. Bb4 {[%emt 0:09:03]} Kc7 {[%emt 0:04:53]} 26. Ba5 {[%emt 0:01:30]} Nb7 {[%emt 0:00:10]} 27. Rxa6+ {[%emt 0:01:28]} Nxa5 {[%emt 0:01:06]} 28. Rxa5 {[%emt 0:00:01]} gxf3 {[%emt 0:00:12]} 29. gxf3 {[%emt 0:00:14]} Rg8 {[%emt 0:00:42]} 30. Nf4 {[%emt 0:01:19]} Rg1 {[%emt 0:00:48]} 31. Ra7+ {[%emt 0:05:11]} Bb7 {[%emt 0:01:21]} 32. Ra4 {[%emt 0:03:18]} Rh1 {[%emt 0:01:52]} 33. h4 {[%emt 0:00:40]} Rh2+ {[%emt 0:01:16]} 34. Kd1 {[%emt 0:05:01]} Rh1+ {[%emt 0:00:51]} 35. Kd2 {[%emt 0:00:15]} Rh2+ {[%emt 0:00:03]} 36. Ne2 {[%emt 0:00:20]} Kd6 {[%emt 0:05:38]} 37. Ke3 {[%emt 0:00:39]} c5 {[%emt 0:00:51]} 38. c3 {[%emt 0:00:23]} Bc6 {[%emt 0:00:51]} 39. Ra6 {[%emt 0:05:03]} Rxh4 {[%emt 0:01:49]} 40. b4 {[%emt 0:00:37]} d4+ {[%emt 0:04:28]} 41. cxd4 {[%emt 0:50:52]} cxb4 {[%emt 0:52:24]} 42. Nf4 {[%emt 0:01:56]} Kc7 {[%emt 0:02:31]} 43. d5 {[%emt 0:00:46]} Bd7 {[%emt 0:00:00]} 44. Rxf6 {[%emt 0:00:00]} Rh2 {[%emt 0:00:00]} 45. Nd3 {[%emt 0:00:00]} b3 {[%emt 0:00:00]} 46. Ne5 {[%emt 0:00:00]} Bb5 {[%emt 0:00:00]} 47. d6+ {[%emt 0:00:00]} Kb6 {[%emt 0:00:00]} 48. d7+ {[%emt 0:00:00]} Kc7 {[%emt 0:00:00]} 49. Rd6 {[%emt 0:00:00]} Re2+ {[%emt 0:00:00]} 50. Kf4 {[%emt 0:00:00]} Bxd7 {[%emt 0:00:00]} 51. Rxd7+ {[%emt 0:00:00]} Kc8 {[%emt 0:00:00]} 52. Rd3 {[%emt 0:00:00]} Rxb2 {[%emt 0:00:00]} 53. Rc3+ {[%emt 0:00:00]} Kd8 {[%emt 0:00:00]} 54. Nc6+ {[%emt 0:00:00]} Ke8 {[%emt 0:00:00]} 55. Nd4 {[%emt 0:00:00]} 1-0

[Event "4NCL Div 2 2024-25"]
[Site "England"]
[Date "2025.04.06"]
[Round "8.30"]
[White "Turner, Lewis A"]
[Black "Longson, Alexander"]
[Result "1/2-1/2"]
[Annotator "ChessBase"]
[ECO "C97"]
[WhiteElo "1984"]
[BlackElo "2250"]
[PlyCount "92"]
[EventDate "2024.11.23"]
[EventType "team-tourn"]
[EventCountry "ENG"]
[SourceTitle "playchess.com"]
[Source "ChessBase"]
[SourceQuality "1"]
[TimeControl "40/6000+30:3000+30"]

1. e4 {[%emt 0:10:03]} e5 {[%emt 0:10:15]} 2. Nf3 {[%emt 0:02:18]} Nc6 {[%emt 0:00:12]} 3. Bb5 {[%emt 0:00:08]} a6 {[%emt 0:00:34]} 4. Ba4 {[%emt 0:00:05]} Nf6 {[%emt 0:00:12]} 5. O-O {[%emt 0:00:10]} Be7 {[%emt 0:04:42]} 6. Re1 {[%emt 0:00:31]} b5 {[%emt 0:00:20]} 7. Bb3 {[%emt 0:00:08]} d6 {[%emt 0:00:06]} 8. c3 {[%emt 0:00:34]} O-O {[%emt 0:00:15]} 9. h3 {[%emt 0:00:06]} Na5 {[%emt 0:00:23]} 10. Bc2 {[%emt 0:00:17]} c5 {[%emt 0:00:06]} 11. d4 {[%emt 0:00:22]} Qc7 {[%emt 0:00:08]} 12. d5 {[%emt 0:00:34]} Nc4 {[%emt 0:01:07]} 13. b3 {[%emt 0:00:51]} Nb6 {[%emt 0:00:06]} 14. Be3 {[%emt 0:02:59]} Bd7 {[%emt 0:01:10]} 15. Nbd2 {[%emt 0:02:27]} g6 {[%emt 0:09:38]} 16. Qe2 {[%emt 0:10:08]} Nh5 {[%emt 0:06:08]} 17. Nf1 {[%emt 0:05:53]} Bf6 {[%emt 0:08:19]} 18. Rac1 {[%emt 0:01:15]} Bg7 {[%emt 0:05:42]} 19. Bb1 {[%emt 0:06:43]} a5 {[%emt 0:11:22]} 20. Bd3 {[%emt 0:03:45]} b4 {[%emt 0:15:24]} 21. Qd2 {[%emt 0:02:28]} bxc3 {[%emt 0:04:37]} 22. Rxc3 {[%emt 0:00:59]} f5 {[%emt 0:02:29]} 23. Bh6 {[%emt 0:03:56]} fxe4 {[%emt 0:07:07]} 24. Bxg7 {[%emt 0:02:17]} Kxg7 {[%emt 0:01:07]} 25. Bxe4 {[%emt 0:00:35]} Nf6 {[%emt 0:03:29]} 26. Ng5 {[%emt 0:07:56]} Rad8 {[%emt 0:08:56]} 27. Rg3 {[%emt 0:05:07]} Nh5 {[%emt 0:00:40]} 28. Nxh7 {[%emt 0:10:31]} Nxg3 {[%emt 0:02:21]} 29. Nxg3 {[%emt 0:01:20]} Kxh7 {[%emt 0:01:26]} 30. Qg5 {[%emt 0:02:26]} Be8 {[%emt 0:01:59]} 31. h4 {[%emt 0:01:37]} Rd7 {[%emt 0:00:57]} 32. h5 {[%emt 0:01:03]} Rg7 {[%emt 0:01:14]} 33. hxg6+ {[%emt 0:05:50]} Rxg6 {[%emt 0:02:21]} 34. Qh5+ {[%emt 0:08:32]} Kg7 {[%emt 0:00:07]} 35. Nf5+ {[%emt 0:01:14]} Kg8 {[%emt 0:01:04]} 36. Nh6+ {[%emt 0:01:33]} Kg7 {[%emt 0:01:15]} 37. Nf5+ {[%emt 0:00:34]} Kg8 {[%emt 0:00:02]} 38. Nh6+ {[%emt 0:01:54]} Rxh6 {[%emt 0:00:21]} 39. Qxh6 {[%emt 0:00:08]} Qf7 {[%emt 0:00:35]} 40. f4 {[%emt 0:06:21]} Qg7 {[%emt 0:01:42]} 41. Qxd6 {[%emt 0:52:07]} Qg3 {[%emt 0:31:15]} 42. Re2 {[%emt 0:00:00]} Qxf4 {[%emt 0:04:50]} 43. Bf3 {[%emt 0:00:00]} Qd4+ {[%emt 0:05:06]} 44. Kh2 {[%emt 0:00:00]} Qh4+ {[%emt 0:05:34]} 45. Kg1 {[%emt 0:00:00]} Qd4+ {[%emt 0:00:08]} 46. Kh2 {[%emt 0:00:00]} Qh4+ {[%emt 0:03:03]} 1/2-1/2

[Event "4NCL Div 2 2024-25"]
[Site "England"]
[Date "2025.04.06"]
[Round "8.31"]
[White "McLean, Robert"]
[Black "Taylor, William J"]
[Result "1/2-1/2"]
[Annotator "NA"]
[ECO "A13"]
[WhiteElo "2011"]
[BlackElo "1994"]
[PlyCount "121"]
[EventDate "2024.11.23"]
[EventType "team-tourn"]
[EventCountry "ENG"]
[SourceTitle "playchess.com"]
[Source "ChessBase"]
[SourceQuality "1"]
[TimeControl "40/6000+30:3000+30"]

1. c4 {[%emt 0:10:02]} e6 {[%emt 0:11:23]} 2. g3 {[%emt 0:00:31]} d5 {[%emt 0:00:09]} 3. Bg2 {[%emt 0:00:08]} Nf6 {[%emt 0:00:33]} 4. Nf3 {[%emt 0:00:16]} dxc4 {[%emt 0:00:35]} 5. Qa4+ {[%emt 0:00:31]} Bd7 {[%emt 0:00:28]} 6. Qxc4 {[%emt 0:00:06]} c5 {[%emt 0:00:09]} 7. Ne5 {[%emt 0:02:21]} Qc8 {[%emt 0:01:03]} 8. Nxd7 {[%emt 0:00:58]} Qxd7 {[%emt 0:00:14]} 9. O-O {[%emt 0:02:09]} Nc6 {[%emt 1:30:26]} 10. Qa4 {[%emt 0:07:12]} Nd4 {[%emt 0:00:00]} 11. Qxd7+ {[%emt 0:01:54]} Nxd7 {[%emt 0:00:00]} 12. Nc3 {[%emt 0:00:13]} Rb8 {[%emt 0:00:00]} 13. b3 {[%emt 0:04:32]} Be7 {[%emt 0:00:00]} 14. e3 {[%emt 0:03:42]} Nf5 {[%emt 0:00:00]} 15. Ne4 {[%emt 0:02:35]} Nd6 {[%emt 0:03:00]} 16. Nxd6+ {[%emt 0:05:00]} Bxd6 {[%emt 0:00:00]} 17. Bb2 {[%emt 0:05:13]} O-O {[%emt 0:00:00]} 18. Rfd1 {[%emt 0:04:22]} Rfd8 {[%emt 0:00:00]} 19. d4 {[%emt 0:01:20]} b6 {[%emt 0:00:00]} 20. Rd2 {[%emt 0:07:52]} Be7 {[%emt 0:00:00]} 21. Rad1 {[%emt 0:03:07]} Nf8 {[%emt 0:00:00]} 22. Ba3 {[%emt 0:10:14]} Rdc8 {[%emt 0:00:00]} 23. Rc2 {[%emt 0:04:07]} Rc7 {[%emt 0:00:00]} 24. dxc5 {[%emt 0:05:13]} Bxc5 {[%emt 0:00:00]} 25. Bxc5 {[%emt 0:07:02]} Rxc5 {[%emt 0:00:00]} 26. Rxc5 {[%emt 0:00:06]} bxc5 {[%emt 0:00:00]} 27. Kf1 {[%emt 0:02:52]} f6 {[%emt 0:00:00]} 28. Ke2 {[%emt 0:01:30]} Kf7 {[%emt 0:00:00]} 29. Rd6 {[%emt 0:00:41]} Rb6 {[%emt 0:00:00]} 30. Rxb6 {[%emt 0:08:19]} axb6 {[%emt 0:00:00]} 31. Kd3 {[%emt 0:00:14]} Ke7 {[%emt 0:00:00]} 32. Kc4 {[%emt 0:00:26]} Kd6 {[%emt 0:00:15]} 33. Kb5 {[%emt 0:00:12]} Kc7 {[%emt 0:01:13]} 34. Bh3 {[%emt 0:01:07]} f5 {[%emt 0:02:04]} 35. a4 {[%emt 0:02:22]} Nd7 {[%emt 0:00:34]} 36. e4 {[%emt 0:02:08]} g6 {[%emt 0:03:10]} 37. exf5 {[%emt 0:04:19]} exf5 {[%emt 0:00:02]} 38. f4 {[%emt 0:01:12]} Nf8 {[%emt 0:02:24]} 39. a5 {[%emt 0:00:12]} bxa5 {[%emt 0:00:05]} 40. Kxc5 {[%emt 0:00:05]} Ne6+ {[%emt 0:00:13]} 41. Kd5 {[%emt 0:50:41]} Kd7 {[%emt 0:52:14]} 42. Bf1 {[%emt 0:00:34]} Nc7+ {[%emt 0:00:00]} 43. Ke5 {[%emt 0:00:00]} Ke7 {[%emt 0:00:00]} 44. Bc4 {[%emt 0:00:00]} Ne8 {[%emt 0:00:00]} 45. Kd5 {[%emt 0:00:00]} Nf6+ {[%emt 0:00:00]} 46. Kc5 {[%emt 0:00:00]} Ng4 {[%emt 0:00:00]} 47. Kb5 {[%emt 0:00:00]} Kd6 {[%emt 0:00:00]} 48. Kxa5 {[%emt 0:00:00]} Kc7 {[%emt 0:00:00]} 49. Ka6 {[%emt 0:00:00]} Kb8 {[%emt 0:00:00]} 50. Kb6 {[%emt 0:00:00]} Nxh2 {[%emt 0:00:00]} 51. Be2 {[%emt 0:00:00]} Ng4 {[%emt 0:00:00]} 52. Kc5 {[%emt 0:00:00]} Nf2 {[%emt 0:00:00]} 53. Bf3 {[%emt 0:00:00]} Kc7 {[%emt 0:00:06]} 54. Bd5 {[%emt 0:00:00]} h6 {[%emt 0:02:03]} 55. Bf3 {[%emt 0:00:00]} g5 {[%emt 0:01:36]} 56. fxg5 {[%emt 0:00:00]} hxg5 {[%emt 0:00:09]} 57. Kd5 {[%emt 0:00:00]} Nd3 {[%emt 0:01:17]} 58. Ke6 {[%emt 0:00:00]} f4 {[%emt 0:03:02]} 59. gxf4 {[%emt 0:07:04]} Nxf4+ {[%emt 0:00:45]} 60. Kf5 {[%emt 0:00:15]} Kb6 {[%emt 0:01:18]} 61. Kxg5 {[%emt 0:00:06]} 1/2-1/2

[Event "4NCL Div 2 2024-25"]
[Site "England"]
[Date "2025.04.06"]
[Round "8.32"]
[White "Barwick, Carmel"]
[Black "Longson, Sarah N"]
[Result "1-0"]
[Annotator "NA"]
[ECO "C24"]
[WhiteElo "1895"]
[BlackElo "1929"]
[PlyCount "124"]
[EventDate "2024.11.23"]
[EventType "team-tourn"]
[EventCountry "ENG"]
[SourceTitle "playchess.com"]
[Source "ChessBase"]
[SourceQuality "1"]
[TimeControl "40/6000+30:3000+30"]

1. e4 {[%emt 0:10:03]} e5 {[%emt 0:10:03]} 2. Bc4 {[%emt 0:00:06]} Nf6 {[%emt 0:00:06]} 3. d4 {[%emt 0:00:23]} exd4 {[%emt 0:02:12]} 4. Nf3 {[%emt 0:00:47]} Nxe4 {[%emt 0:04:54]} 5. Qxd4 {[%emt 0:01:09]} Nf6 {[%emt 0:03:56]} 6. Nc3 {[%emt 0:01:25]} Nc6 {[%emt 0:06:42]} 7. Qh4 {[%emt 0:02:02]} Be7 {[%emt 0:00:32]} 8. Bg5 {[%emt 0:01:08]} O-O {[%emt 0:02:12]} 9. O-O-O {[%emt 0:01:23]} d6 {[%emt 0:03:13]} 10. Bd3 {[%emt 0:01:27]} g6 {[%emt 0:07:28]} 11. Rhe1 {[%emt 0:18:19]} Be6 {[%emt 0:00:54]} 12. Bc4 {[%emt 0:12:04]} Qd7 {[%emt 0:16:00]} 13. Bxf6 {[%emt 0:22:18]} Bxf6 {[%emt 0:00:17]} 14. Qxf6 {[%emt 0:00:20]} Bxc4 {[%emt 0:00:10]} 15. Qh4 {[%emt 0:03:00]} Ba6 {[%emt 0:13:37]} 16. Nd5 {[%emt 0:10:47]} Kg7 {[%emt 0:15:59]} 17. Qf6+ {[%emt 0:03:00]} Kg8 {[%emt 0:00:06]} 18. Qc3 {[%emt 0:01:42]} f5 {[%emt 0:01:15]} 19. Nf6+ {[%emt 0:05:18]} Rxf6 {[%emt 0:00:04]} 20. Qxf6 {[%emt 0:00:03]} Rf8 {[%emt 0:02:29]} 21. Qc3 {[%emt 0:01:04]} Qf7 {[%emt 0:02:27]} 22. b3 {[%emt 0:03:01]} h6 {[%emt 0:00:33]} 23. Kb2 {[%emt 0:02:04]} g5 {[%emt 0:01:08]} 24. Nd4 {[%emt 0:04:58]} Ne5 {[%emt 0:00:34]} 25. Nf3 {[%emt 0:00:56]} Nc6 {[%emt 0:00:47]} 26. h3 {[%emt 0:00:54]} g4 {[%emt 0:02:38]} 27. Nd4 {[%emt 0:00:34]} Ne5 {[%emt 0:00:16]} 28. f4 {[%emt 0:00:44]} Ng6 {[%emt 0:00:54]} 29. hxg4 {[%emt 0:01:12]} fxg4 {[%emt 0:00:25]} 30. f5 {[%emt 0:00:29]} Ne5 {[%emt 0:00:14]} 31. Ne6 {[%emt 0:01:26]} Rc8 {[%emt 0:00:25]} 32. Rxd6 {[%emt 0:01:13]} Nc4+ {[%emt 0:00:44]} 33. bxc4 {[%emt 0:00:09]} cxd6 {[%emt 0:00:12]} 34. c5 {[%emt 0:00:30]} dxc5 {[%emt 0:02:38]} 35. Rh1 {[%emt 0:00:35]} Qh7 {[%emt 0:04:00]} 36. Qf6 {[%emt 0:00:24]} Qh8 {[%emt 0:01:37]} 37. Qxh8+ {[%emt 0:00:01]} Kxh8 {[%emt 0:00:00]} 38. Rxh6+ {[%emt 0:00:11]} Kg8 {[%emt 0:00:00]} 39. Rg6+ {[%emt 0:00:50]} Kf7 {[%emt 0:00:00]} 40. Rxg4 {[%emt 0:01:01]} c4 {[%emt 0:04:44]} 41. Kc3 {[%emt 0:51:27]} Kf6 {[%emt 0:27:11]} 42. Rf4 {[%emt 0:00:00]} b5 {[%emt 0:05:50]} 43. g4 {[%emt 0:00:00]} Rg8 {[%emt 0:06:22]} 44. Nc7 {[%emt 0:00:00]} Ke5 {[%emt 0:05:13]} 45. Rf2 {[%emt 0:00:00]} Bc8 {[%emt 0:00:19]} 46. Nxb5 {[%emt 0:00:00]} Rxg4 {[%emt 0:00:56]} 47. f6 {[%emt 0:00:00]} Rg3+ {[%emt 0:03:20]} 48. Kb4 {[%emt 0:00:00]} Rg8 {[%emt 0:00:15]} 49. f7 {[%emt 0:00:00]} Rf8 {[%emt 0:00:05]} 50. Re2+ {[%emt 0:00:00]} Kf6 {[%emt 0:01:16]} 51. Re8 {[%emt 0:00:00]} Kg7 {[%emt 0:00:33]} 52. Rxf8 {[%emt 0:00:00]} Kxf8 {[%emt 0:00:01]} 53. Nd6 {[%emt 0:00:00]} Be6 {[%emt 0:04:25]} 54. c3 {[%emt 0:00:19]} Bd7 {[%emt 0:00:56]} 55. a3 {[%emt 0:00:27]} Be6 {[%emt 0:00:07]} 56. Kc5 {[%emt 0:00:32]} Ke7 {[%emt 0:03:14]} 57. Kb5 {[%emt 0:02:58]} Bxf7 {[%emt 0:01:43]} 58. Nxf7 {[%emt 0:00:07]} Kxf7 {[%emt 0:00:01]} 59. Kxc4 {[%emt 0:00:16]} Ke7 {[%emt 0:00:05]} 60. Kb5 {[%emt 0:01:23]} Kd7 {[%emt 0:00:10]} 61. Ka6 {[%emt 0:01:23]} Kc6 {[%emt 0:00:22]} 62. a4 {[%emt 0:00:38]} Kd5 {[%emt 0:02:41]} 1-0